bitfinex-derivatives/quotes_BTCF0:USTF0_20250910
["timestamp","ask_amount","ask_price","bid_price","bid_amount"]
[1757467923114,0.05623718,111040.0,111030.0,0.17181944]
[1757467923314,0.05623718,111040.0,111030.0,0.02254]
[1757467924120,0.05423718,111040.0,111030.0,0.02254]
[1757467924432,0.05423718,111040.0,111030.0,0.03628]
[1757467924719,0.04044718,111040.0,111030.0,0.03628]
[1757467924917,0.04044718,111040.0,111030.0,0.17181944]
[1757467925719,0.04044718,111040.0,111030.0,0.42181944]
[1757467925923,0.02093718,111040.0,111030.0,0.42181944]
[1757467926315,0.04244718,111040.0,111030.0,0.42181944]
[1757467927322,0.05423718,111040.0,111030.0,0.03628]
[1757467927521,0.05223718,111040.0,111030.0,0.03828]
[1757467928622,0.05423718,111040.0,111030.0,0.04128]
[1757467929622,0.18977662,111040.0,111030.0,0.005]
[1757467930325,0.04244718,111040.0,111030.0,0.04128]
[1757467930525,0.04244718,111040.0,111030.0,0.17681944]
[1757467931828,0.02093718,111040.0,111030.0,0.17681944]
[1757467932423,0.02093718,111040.0,111030.0,0.31235888]
[1757467932821,0.02093718,111040.0,111030.0,0.17681944]
[1757467933326,0.04284718,111040.0,111030.0,0.17681944]
[1757467934128,0.05489718,111040.0,111030.0,0.04128]
[1757467935529,0.04284718,111040.0,111030.0,0.04128]
[1757467935731,0.04284718,111040.0,111030.0,0.17681944]
[1757467938330,0.03696,111040.0,111030.0,0.02754]
[1757467938728,0.03696,111040.0,111030.0,0.16307944]
[1757467938929,0.03696,111040.0,111030.0,0.17578944]
[1757467939434,0.05786944,111040.0,111030.0,0.17578944]
[1757467940030,0.04581944,111040.0,111030.0,0.17578944]
[1757467940233,0.02491,111040.0,111030.0,0.17578944]
[1757467940930,0.17249944,111040.0,111030.0,0.005]
[1757467941131,0.19341417,111040.0,111030.0,0.005]
[1757467942122,0.44341417,111040.0,111030.0,0.005]
[1757467943428,1.26669417,111040.0,111030.0,0.005]
[1757467944532,1.26661417,111040.0,111030.0,0.005]
[1757467945537,1.33862426,111040.0,111030.0,0.005]
[1757467945926,1.33842426,111040.0,111030.0,0.005]
[1757467947135,0.51542426,111040.0,111030.0,0.005]
[1757467947330,1.33826426,111040.0,111030.0,0.005]
[1757467948335,0.95276482,111040.0,111030.0,0.02698]
[1757467948535,1.08822426,111040.0,111030.0,0.02698]
[1757467948927,0.26542426,111040.0,111030.0,0.02698]
[1757467949128,1.04698426,111040.0,111030.0,0.02698]
[1757467949433,0.26542426,111040.0,111030.0,0.02698]
[1757467949628,0.82714473,111040.0,111030.0,0.17522944]
[1757467949929,0.83919473,111040.0,111030.0,0.02698]
[1757467950136,0.05787473,111040.0,111030.0,0.02698]
[1757467950325,0.88071473,111040.0,111030.0,0.02698]
[1757467952437,1.01625417,111040.0,111030.0,0.005]
[1757467953032,1.26625417,111040.0,111030.0,0.005]
[1757467953236,0.17061944,111030.0,111020.0,0.0001]
[1757467953437,0.03508,111020.0,111010.0,0.0001]
[1757467953648,0.99341944,111020.0,111000.0,0.17660693]
[1757467953837,0.99341944,111020.0,111000.0,0.03217931]
[1757467954040,1.01452793,111020.0,111000.0,0.16771875]
[1757467954436,1.01452793,111020.0,111000.0,0.17695106]
[1757467954938,1.01152793,111020.0,111000.0,0.16771875]
[1757467955133,0.87598849,111020.0,111010.0,0.02198]
[1757467955631,1.01152793,111020.0,111010.0,0.02198]
[1757467955937,0.03508,111010.0,111000.0,0.01843931]
[1757467956136,0.03508,111010.0,111000.0,0.02233931]
[1757467956137,0.17061944,111010.0,111000.0,0.02233931]
[1757467956341,0.02191,111010.0,111000.0,0.42422944]
[1757467957937,0.02191,111010.0,111000.0,0.28869]
[1757467958236,0.02191,111010.0,111000.0,0.42422944]
[1757467958634,0.02191,111010.0,111000.0,0.28469]
[1757467958844,0.02191,111010.0,111000.0,0.17322944]
[1757467958845,0.02291,111010.0,111000.0,0.17322944]
[1757467960443,0.02491,111010.0,111000.0,0.17322944]
[1757467962739,0.02491,111010.0,111000.0,0.03769]
[1757467963046,0.19453473,111010.0,111000.0,0.003]
[1757467963240,0.1945332,111010.0,111000.0,0.003]
[1757467963449,0.1945332,111010.0,111000.0,0.01699192]
[1757467963749,0.1945332,111010.0,111000.0,0.003]
[1757467964742,0.1945332,111010.0,111000.0,0.01699518]
[1757467966147,0.1814032,111010.0,111000.0,0.05285518]
[1757467966449,0.1814032,111010.0,111000.0,0.42439944]
[1757467966450,0.02491,111010.0,111000.0,0.42439944]
[1757467966946,0.02491,111010.0,111000.0,0.28886]
[1757467967150,0.02491,111010.0,111000.0,0.42439944]
[1757467967737,0.003,111010.0,111000.0,0.55993888]
[1757467969339,0.003,111010.0,111000.0,0.28886]
[1757467969633,0.003,111010.0,111000.0,0.65002258]
[1757467970047,0.003,111010.0,111000.0,0.55993888]
[1757467971049,0.003,111010.0,111000.0,0.42439944]
[1757467971650,0.003,111010.0,111000.0,0.55993888]
[1757467972750,0.02576,111010.0,111000.0,0.17439944]
[1757467974451,0.02576,111010.0,111000.0,0.17358435]
[1757467974643,0.003,111010.0,111000.0,0.17358435]
[1757467975053,0.02576,111010.0,111000.0,0.17358435]
[1757467976353,0.02576,111010.0,111000.0,0.23177086]
[1757467977056,0.02576,111010.0,111000.0,0.13531543]
[1757467978953,0.02576,111010.0,111000.0,0.03886]
[1757467979156,0.02576,111010.0,111000.0,0.13531543]
[1757467980751,0.003,111010.0,111000.0,0.13531543]
[1757467980958,0.003,111010.0,111000.0,0.23177086]
[1757467985963,0.0001348,111020.0,111010.0,0.1259353]
[1757467986153,0.04509,111060.0,111050.0,0.02225]
[1757467986457,0.16248045,111060.0,111050.0,0.02225]
[1757467987568,0.25893588,111060.0,111050.0,0.02225]
[1757467987864,0.25893588,111060.0,111040.0,0.0138448]
[1757467988162,0.13234543,111050.0,111040.0,0.0360948]
[1757467988359,0.15328045,111050.0,111040.0,0.0359948]
[1757467989459,0.04369502,111050.0,111040.0,0.0359948]
[1757467989764,0.04369502,111050.0,111040.0,0.13245023]
[1757467989950,0.04369502,111050.0,111040.0,0.14146537]
[1757467990149,0.04369502,111050.0,111040.0,0.13245023]
[1757467991063,0.04469502,111050.0,111040.0,0.13245023]
[1757467991564,0.02193502,111050.0,111040.0,0.22890566]
[1757467991758,0.02193502,111050.0,111040.0,0.13245023]
[1757467991956,0.04425502,111050.0,111040.0,0.13245023]
[1757467993758,0.04525502,111050.0,111040.0,0.13245023]
[1757467995253,0.04525502,111050.0,111040.0,0.0223848]
[1757467995254,0.15479045,111050.0,111040.0,0.0223848]
[1757467995463,0.15479045,111050.0,111040.0,0.0001348]
[1757467995662,0.97747045,111050.0,111040.0,0.0001348]
[1757467995867,0.02293502,111050.0,111040.0,0.22836566]
[1757467996473,0.04525502,111050.0,111040.0,0.13191023]
[1757467996852,0.14171045,111050.0,111040.0,0.13191023]
[1757467997058,0.15479045,111050.0,111040.0,0.0220148]
[1757467997767,0.13385543,111050.0,111040.0,0.0220148]
[1757467998862,0.05824638,111050.0,111040.0,0.0354548]
[1757467999062,0.15470181,111050.0,111040.0,0.0354548]
[1757467999869,0.15470181,111050.0,111040.0,0.0220148]
[1757468000358,0.40470181,111050.0,111040.0,0.0001348]
[1757468000772,0.50115724,111050.0,111040.0,0.0001348]
[1757468003271,1.32371724,111050.0,111040.0,0.0001348]
[1757468003772,0.40470181,111050.0,111040.0,0.0001348]
[1757468003970,0.40470181,111050.0,111040.0,0.0220148]
[1757468003971,0.15470181,111050.0,111040.0,0.0220148]
[1757468004470,0.04516638,111050.0,111040.0,0.13191023]
[1757468004664,0.86776638,111050.0,111040.0,0.13191023]
[1757468005068,0.02284638,111050.0,111040.0,0.47836566]
[1757468005268,0.002,111050.0,111040.0,0.47836566]
[1757468005769,0.002,111050.0,111040.0,0.66487209]
[1757468005968,0.002,111050.0,111040.0,0.56841666]
[1757468006176,0.002,111050.0,111040.0,0.47836566]
[1757468006362,0.002,111050.0,111040.0,0.42006513]
[1757468007677,0.02432,111050.0,111040.0,0.0354548]
[1757468009676,0.17201033,111050.0,111040.0,0.0354548]
[1757468010167,0.0374,111050.0,111040.0,0.0354548]
[1757468012674,0.02432,111050.0,111040.0,0.0354548]
[1757468012974,0.002,111050.0,111040.0,0.17006513]
[1757468013575,0.02432,111050.0,111040.0,0.17006513]
[1757468014565,0.04512583,111050.0,111040.0,0.17006513]
[1757468014760,0.04512583,111050.0,111040.0,0.0354548]
[1757468020172,0.04512583,111050.0,111040.0,0.17006513]
[1757468020580,0.04513398,111050.0,111040.0,0.17006513]
[1757468021686,0.04513398,111050.0,111040.0,0.0354548]
[1757468023696,0.19304431,111050.0,111040.0,0.0220148]
[1757468026497,0.04513398,111050.0,111040.0,0.0348248]
[1757468027996,0.05843398,111050.0,111040.0,0.0220148]
[1757468028697,0.19304431,111050.0,111040.0,0.0001348]
[1757468029493,0.44304431,111050.0,111040.0,0.0001348]
[1757468029798,0.49131595,111050.0,111040.0,0.0001348]
[1757468033201,1.29267595,111050.0,111040.0,0.0001348]
[1757468034504,1.29368149,111050.0,111040.0,0.0001348]
[1757468034801,1.24540985,111050.0,111040.0,0.0001348]
[1757468035801,1.10979398,111050.0,111040.0,0.0001348]
[1757468035993,1.24540985,111050.0,111040.0,0.0001348]
[1757468036406,0.44404985,111050.0,111040.0,0.0001348]
[1757468036608,1.26652985,111050.0,111040.0,0.0001348]
[1757468038507,0.03486,111040.0,111030.0,0.0001]
[1757468038701,0.03486,111030.0,111020.0,0.02118]
[1757468038902,1.01380985,111030.0,111020.0,0.02108]
[1757468039901,1.01280985,111030.0,111020.0,0.02108]
[1757468040109,1.01280985,111030.0,111020.0,0.25]
[1757468040706,1.01380985,111030.0,111020.0,0.27308]
[1757468041406,0.99299587,111030.0,111020.0,0.27308]
[1757468041607,1.01379864,111030.0,111020.0,0.27308]
[1757468042209,0.99499587,111030.0,111020.0,0.27308]
[1757468042708,0.02478,111030.0,111020.0,0.28589]
[1757468042902,0.8473,111030.0,111020.0,0.42150587]
[1757468044008,0.99599587,111030.0,111020.0,0.03589]
[1757468044209,1.01679371,111030.0,111020.0,0.02308]
[1757468044707,0.99599587,111030.0,111020.0,0.02308]
[1757468045713,0.99599587,111030.0,111020.0,0.03589]
[1757468045904,0.16039587,111030.0,111020.0,0.03589]
[1757468046104,0.16039587,111030.0,111020.0,0.42150587]
[1757468046105,0.02478,111030.0,111020.0,0.42150587]
[1757468048114,0.04557908,111030.0,111020.0,0.28589]
[1757468048413,0.16039587,111030.0,111020.0,0.28589]
[1757468048805,0.02478,111030.0,111020.0,0.28589]
[1757468049005,0.17347587,111030.0,111020.0,0.02308]
[1757468049202,0.17347587,111030.0,111020.0,0.002]
[1757468049617,0.17347587,111030.0,111020.0,0.02308]
[1757468050318,0.20334788,111030.0,111020.0,0.002]
[1757468050509,0.18254766,111030.0,111020.0,0.02308]
[1757468050712,0.16946766,111030.0,111020.0,0.32526532]
[1757468050913,0.16946766,111030.0,111020.0,0.18057766]
[1757468051717,0.16946766,111030.0,111020.0,0.32526532]
[1757468051919,0.16946766,111030.0,111020.0,0.57526532]
[1757468053310,0.16946766,111030.0,111020.0,0.28589]
[1757468053510,0.16946766,111030.0,111020.0,0.57526532]
[1757468053811,0.16946766,111030.0,111020.0,0.43057766]
[1757468054518,0.19028076,111030.0,111020.0,0.43057766]
[1757468055712,0.19028076,111030.0,111020.0,0.57526532]
[1757468056419,0.19028076,111030.0,111020.0,0.28589]
[1757468056617,0.19028076,111030.0,111020.0,0.57526532]
[1757468056817,0.19028076,111030.0,111020.0,0.28589]
[1757468057122,0.19028076,111030.0,111020.0,0.43057766]
[1757468057822,0.20336076,111030.0,111020.0,0.02308]
[1757468058011,0.20336076,111030.0,111020.0,0.18117766]
[1757468058208,0.19028076,111030.0,111020.0,0.18117766]
[1757468059013,0.0455931,111030.0,111020.0,0.18117766]
[1757468059213,0.19028076,111030.0,111020.0,0.18117766]
[1757468061817,0.20336076,111030.0,111020.0,0.02308]
[1757468062027,0.34804842,111030.0,111020.0,0.002]
[1757468062915,0.20336076,111030.0,111020.0,0.002]
[1757468065116,0.45336076,111030.0,111020.0,0.002]
[1757468065311,0.59804842,111030.0,111020.0,0.002]
[1757468065719,0.45336076,111030.0,111020.0,0.002]
[1757468066120,0.59804842,111030.0,111020.0,0.002]
[1757468066319,0.45336076,111030.0,111020.0,0.002]
[1757468066516,0.0455931,111030.0,111020.0,0.18120766]
[1757468066726,1.01284076,111030.0,111020.0,0.32589532]
[1757468066916,1.01284076,111030.0,111020.0,0.18120766]
[1757468067627,0.8681531,111030.0,111020.0,0.18120766]
[1757468067827,1.01284076,111030.0,111020.0,0.18120766]
[1757468068216,0.0238131,111030.0,111020.0,0.57589532]
[1757468068920,0.003,111030.0,111020.0,0.78531163]
[1757468069325,0.003,111030.0,111020.0,0.64062397]
[1757468070022,0.003,111030.0,111020.0,0.87537883]
[1757468070228,0.0001348,111040.0,111030.0,0.03452]
[1757468070428,2.29300766,111070.0,111030.0,0.41395442]
[1757468070624,2.33513175,111070.0,111060.0,0.17920766]
[1757468070927,0.51857175,111070.0,111060.0,0.17920766]
[1757468071624,0.51857175,111070.0,111060.0,0.03452]
[1757468071922,0.51857175,111070.0,111060.0,0.17920766]
[1757468072328,0.37388409,111070.0,111060.0,0.17920766]
[1757468072523,0.51857175,111070.0,111060.0,0.17920766]
[1757468072732,0.51857175,111070.0,111060.0,0.03452]
[1757468072918,0.04212409,111070.0,111060.0,0.17920766]
[1757468073119,0.02106409,111070.0,111060.0,0.57389532]
[1757468073520,0.02206409,111070.0,111060.0,0.57489532]
[1757468073731,0.02406409,111070.0,111060.0,0.57589532]
[1757468074242,0.16875175,111070.0,111060.0,0.58514817]
[1757468074530,0.18981175,111070.0,111060.0,0.43120766]
[1757468074928,0.18981175,111070.0,111060.0,0.50334883]
[1757468075127,0.16875175,111070.0,111060.0,0.43120766]
[1757468075324,0.02406409,111070.0,111060.0,0.72058298]
[1757468075633,0.02406409,111070.0,111060.0,0.81966026]
[1757468075824,1.0153993,111100.0,111090.0,0.01341]
[1757468076033,1.05743996,111100.0,111090.0,0.03452]
[1757468076230,1.20212762,111100.0,111090.0,0.17920766]
[1757468076428,1.05743996,111100.0,111090.0,0.17920766]
[1757468077131,1.06243996,111100.0,111090.0,0.18020766]
[1757468077329,0.9247523,111100.0,111090.0,0.18020766]
[1757468077635,0.03298066,111100.0,111090.0,0.18020766]
[1757468078132,0.03298066,111100.0,111090.0,0.43020766]
[1757468078337,0.03298066,111100.0,111090.0,0.57489532]
[1757468078836,0.03298066,111100.0,111090.0,0.43020766]
[1757468079435,0.02998066,111100.0,111090.0,0.17920766]
[1757468079633,0.02298066,111100.0,111090.0,0.17920766]
[1757468079834,0.02598066,111100.0,111090.0,0.18020766]
[1757468080427,0.02598066,111100.0,111090.0,0.17093617]
[1757468081830,0.005,111100.0,111090.0,0.17093617]
[1757468085725,0.0278,111100.0,111090.0,0.03552]
[1757468085930,0.16321617,111100.0,111090.0,0.03552]
[1757468086828,0.0278,111100.0,111090.0,0.03552]
[1757468087633,0.005,111100.0,111090.0,0.03552]
[1757468087827,0.005,111100.0,111090.0,0.17093617]
[1757468088027,0.005,111100.0,111090.0,0.55635234]
[1757468089239,0.003,111100.0,111090.0,0.55635234]
[1757468089440,0.005,111100.0,111090.0,0.55735234]
[1757468090144,0.003,111100.0,111090.0,0.55635234]
[1757468090436,0.004,111100.0,111090.0,0.55635234]
[1757468092643,0.0228,111130.0,111120.0,0.0361]
[1757468092940,0.04365606,111130.0,111120.0,0.17151617]
[1757468093336,0.04365606,111130.0,111120.0,0.0361]
[1757468094244,0.04765606,111130.0,111120.0,0.0371]
[1757468096550,0.02485606,111130.0,111120.0,0.17157425]
[1757468096943,0.004,111130.0,111120.0,0.17157425]
[1757468097144,0.004,111130.0,111120.0,0.17257425]
[1757468097145,0.007,111130.0,111120.0,0.17257425]
[1757468097347,0.05068771,111130.0,111120.0,0.17257425]
[1757468097550,0.02788771,111130.0,111120.0,0.17257425]
[1757468098250,0.02788771,111130.0,111120.0,0.24412936]
[1757468100355,0.02788771,111130.0,111120.0,0.30216489]
[1757468101240,0.3969426,111130.0,111120.0,0.10965511]
[1757468101441,0.4108726,111130.0,111120.0,0.10965511]
[1757468102148,0.30068771,111130.0,111120.0,0.10965511]
[1757468102348,0.4108726,111130.0,111120.0,0.002]
[1757468102651,0.50712749,111130.0,111120.0,0.002]
[1757468102848,0.50712749,111130.0,111120.0,0.02466]
[1757468103045,0.4108726,111130.0,111120.0,0.02466]
[1757468103854,0.1608726,111130.0,111120.0,0.02466]
[1757468104058,0.1608726,111130.0,111120.0,0.0381]
[1757468104455,0.06461771,111130.0,111120.0,0.0381]
[1757468104954,0.05068771,111130.0,111120.0,0.0381]
[1757468105656,0.02788771,111130.0,111120.0,0.49632882]
[1757468105855,0.02788771,111130.0,111120.0,0.4225853]
[1757468106055,0.007,111130.0,111120.0,0.4225853]
[1757468106452,0.02800583,111130.0,111120.0,0.4225853]
[1757468107058,0.1484153,111160.0,111150.0,0.0361]
[1757468107059,0.07107164,111160.0,111150.0,0.0361]
[1757468107255,0.09207482,111160.0,111150.0,0.0361]
[1757468108653,0.02100318,111160.0,111150.0,0.1705853]
[1757468108858,0.02600318,111160.0,111150.0,0.4215853]
[1757468109760,0.03500318,111160.0,111150.0,0.49527978]
[1757468110158,0.05380318,111160.0,111150.0,0.35979448]
[1757468110958,0.03100318,111160.0,111150.0,0.49427978]
[1757468111352,0.03100318,111160.0,111150.0,0.51260451]
[1757468113361,0.03100318,111160.0,111150.0,0.90524451]
[1757468113758,0.05300318,111160.0,111150.0,0.12811921]
[1757468113966,0.18748848,111160.0,111150.0,0.12811921]
[1757468114154,0.05300318,111160.0,111150.0,0.12811921]
[1757468115254,0.03100318,111160.0,111150.0,0.26260451]
[1757468116158,0.03100318,111160.0,111150.0,0.51260451]
[1757468116467,0.02400318,111160.0,111150.0,0.51260451]
[1757468118465,0.02400318,111160.0,111150.0,0.26260451]
[1757468118658,0.02400318,111160.0,111150.0,0.12811921]
[1757468118659,0.0456795,111160.0,111150.0,0.12811921]
[1757468122562,0.3090295,111160.0,111150.0,0.04198473]
[1757468123869,0.4435148,111160.0,111150.0,0.04198473]
[1757468124166,0.4435148,111160.0,111150.0,0.02366]
[1757468124369,0.4435148,111160.0,111150.0,0.001]
[1757468126071,0.3090295,111160.0,111150.0,0.001]
[1757468126260,0.4435148,111160.0,111150.0,0.001]
[1757468127866,0.03535,111150.0,111140.0,0.0002348]
[1757468128072,1.05242694,111150.0,111140.0,0.0001348]
[1757468128265,1.32310644,111150.0,111140.0,0.0001348]
[1757468129473,1.32410644,111150.0,111140.0,0.0011348]
[1757468130368,1.32438644,111150.0,111140.0,0.0011348]
[1757468130675,1.32538644,111150.0,111140.0,0.0011348]
[1757468131374,1.32638644,111150.0,111140.0,0.0011348]
[1757468132463,0.49178644,111150.0,111140.0,0.0011348]
[1757468132668,1.32662644,111150.0,111140.0,0.0011348]
[1757468133574,1.32662644,111150.0,111130.0,0.0001]
[1757468133774,1.05298694,111140.0,111130.0,0.0001]
[1757468133973,0.03535,111130.0,111120.0,0.0001]
[1757468134274,0.01335,111120.0,111110.0,0.03177211]
[1757468134469,0.022,111120.0,111110.0,0.05303211]
[1757468135872,0.022,111120.0,111110.0,0.05503211]
[1757468138068,0.023,111120.0,111110.0,0.05703211]
[1757468140472,0.001,111120.0,111110.0,0.44151741]
[1757468141070,0.02349,111120.0,111110.0,0.44151741]
[1757468141473,0.001,111120.0,111110.0,0.44151741]
[1757468143476,0.001,111120.0,111110.0,0.19151741]
[1757468143477,0.02349,111120.0,111110.0,0.19151741]
[1757468143770,0.02349,111120.0,111110.0,0.05703211]
[1757468144374,0.1709353,111120.0,111110.0,0.05703211]
[1757468144778,0.03645,111120.0,111110.0,0.05703211]
[1757468145279,0.03645,111120.0,111110.0,0.04372211]
[1757468145473,0.03645,111120.0,111110.0,0.05684211]
[1757468146172,0.03645,111120.0,111110.0,0.03848]
[1757468146681,0.02349,111120.0,111110.0,0.03848]
[1757468147079,0.001,111120.0,111110.0,0.1729653]
[1757468147281,0.001,111120.0,111110.0,0.4229653]
[1757468150180,0.02349,111120.0,111110.0,0.4229653]
[1757468151179,0.02349,111120.0,111110.0,0.03848]
[1757468152678,0.4209353,111120.0,111110.0,0.004]
[1757468152981,0.44156837,111120.0,111110.0,0.004]
[1757468153475,1.27528837,111120.0,111110.0,0.004]
[1757468153875,0.44156837,111120.0,111110.0,0.004]
[1757468154079,1.27520837,111120.0,111110.0,0.004]
[1757468155682,1.32348001,111120.0,111110.0,0.004]
[1757468155983,0.1699353,111110.0,111100.0,0.0001]
[1757468156279,0.03545,111100.0,111090.0,0.02175]
[1757468156582,0.19155645,111100.0,111090.0,0.02165]
[1757468157181,0.19055645,111100.0,111090.0,0.02165]
[1757468157786,0.18755645,111100.0,111090.0,0.02465]
[1757468158178,1.27163645,111100.0,111090.0,0.003]
[1757468158775,1.27183645,111100.0,111090.0,0.003]
[1757468159270,1.27183433,111100.0,111090.0,0.003]
[1757468159475,1.27183433,111100.0,111080.0,0.0001]
[1757468159675,0.88836095,111100.0,111090.0,0.001]
[1757468160384,0.88816095,111100.0,111090.0,0.001]
[1757468160579,0.88616095,111100.0,111080.0,0.01322]
[1757468160882,0.88816095,111100.0,111090.0,0.002]
[1757468161079,0.05408095,111100.0,111090.0,0.02365]
[1757468161473,0.27600095,111100.0,111090.0,0.02165]
[1757468161673,0.27800095,111100.0,111090.0,0.02265]
[1757468162078,0.19155433,111100.0,111090.0,0.02265]
[1757468162274,0.62619433,111100.0,111090.0,0.02265]
[1757468162473,0.62519433,111100.0,111090.0,0.02265]
[1757468162674,0.62719433,111100.0,111090.0,0.02265]
[1757468164386,0.04812095,111100.0,111090.0,0.03577]
[1757468164573,0.04812095,111100.0,111090.0,0.17124338]
[1757468164778,0.04812095,111100.0,111090.0,0.03577]
[1757468164977,0.18359433,111100.0,111090.0,0.03577]
[1757468165384,0.04812095,111100.0,111090.0,0.03577]
[1757468165590,0.18359433,111100.0,111090.0,0.03577]
[1757468165793,0.04812095,111100.0,111090.0,0.03577]
[1757468166085,0.02563095,111100.0,111090.0,0.42124338]
[1757468166484,0.02563095,111100.0,111090.0,0.28577]
[1757468166784,0.02563095,111100.0,111090.0,0.42124338]
[1757468167183,0.005,111100.0,111090.0,0.55671676]
[1757468168384,0.005,111100.0,111090.0,0.28577]
[1757468168685,0.005,111100.0,111090.0,0.42124338]
[1757468170386,0.02749,111100.0,111090.0,0.42124338]
[1757468170889,0.02749,111100.0,111090.0,0.17124338]
[1757468171887,0.005,111100.0,111090.0,0.17124338]
[1757468173987,0.005,111100.0,111090.0,0.28577]
[1757468174292,0.005,111100.0,111090.0,0.55671676]
[1757468174476,0.005,111100.0,111090.0,0.42124338]
[1757468174680,0.0001348,111110.0,111100.0,0.03466]
[1757468174889,0.0001348,111110.0,111100.0,0.17013338]
[1757468176494,0.0021348,111110.0,111100.0,0.17013338]
[1757468177795,0.0051348,111110.0,111100.0,0.17113338]
[1757468182299,0.0051348,111110.0,111100.0,0.32448264]
[1757468183595,0.14441132,111140.0,111130.0,0.01275]
[1757468183799,0.18648746,111140.0,111130.0,0.17907132]
[1757468185103,0.04607614,111140.0,111130.0,0.18007132]
[1757468185307,0.19048746,111140.0,111130.0,0.18007132]
[1757468185508,0.19748746,111140.0,111130.0,0.18107132]
[1757468185909,0.19748746,111140.0,111130.0,0.19000926]
[1757468186102,0.19348746,111140.0,111130.0,0.18900926]
[1757468186308,0.17492132,111140.0,111130.0,0.18900926]
[1757468186608,0.17292132,111140.0,111130.0,0.18900926]
[1757468187614,0.02851,111140.0,111130.0,0.18900926]
[1757468187913,0.17292132,111140.0,111130.0,0.18900926]
[1757468188316,0.17292132,111140.0,111130.0,0.26124172]
[1757468190519,0.17292132,111140.0,111130.0,0.1168304]
[1757468190719,0.17292132,111140.0,111130.0,0.26124172]
[1757468191023,0.17292132,111140.0,111130.0,0.25230378]
[1757468191316,0.17292132,111140.0,111130.0,0.10789246]
[1757468191720,0.58008264,111140.0,111130.0,0.001]
[1757468191910,1.43021417,111140.0,111130.0,0.001]
[1757468193711,1.57462549,111140.0,111130.0,0.001]
[1757468194719,1.43021417,111140.0,111130.0,0.001]
[1757468194914,1.57462549,111140.0,111130.0,0.001]
[1757468195316,0.01275,111130.0,111120.0,0.0002348]
[1757468195516,0.34361417,111130.0,111120.0,0.0001348]
[1757468196818,0.34461417,111130.0,111120.0,0.0001348]
[1757468197618,0.34661417,111130.0,111120.0,0.0011348]
[1757468198520,0.25047449,111130.0,111120.0,0.0011348]
[1757468198719,0.39488581,111130.0,111120.0,0.0011348]
[1757468198922,0.34661417,111130.0,111120.0,0.0011348]
[1757468199118,0.20220285,111130.0,111120.0,0.0011348]
[1757468199321,1.03116285,111130.0,111120.0,0.0230448]
[1757468199520,0.87400153,111130.0,111120.0,0.32461744]
[1757468199718,0.87392153,111130.0,111120.0,0.32461744]
[1757468199921,0.04504153,111130.0,111120.0,0.32461744]
[1757468200422,0.04504153,111130.0,111120.0,0.0357948]
[1757468200722,0.04504153,111130.0,111120.0,0.32461744]
[1757468201022,0.18945285,111130.0,111120.0,0.32461744]
[1757468201319,0.18945285,111130.0,111120.0,0.0357948]
[1757468201519,0.18945285,111130.0,111120.0,0.18020612]
[1757468202423,0.04504153,111130.0,111120.0,0.18020612]
[1757468202721,0.18945285,111130.0,111120.0,0.18020612]
[1757468202919,0.20337285,111130.0,111120.0,0.0011348]
[1757468203114,0.34778417,111130.0,111120.0,0.0011348]
[1757468203316,0.59778417,111130.0,111120.0,0.0011348]
[1757468204422,0.44439672,111130.0,111120.0,0.0011348]
[1757468204924,0.44443224,111130.0,111120.0,0.0011348]
[1757468205724,1.27271224,111130.0,111120.0,0.0011348]
[1757468206219,1.45641907,111130.0,111120.0,0.0011348]
[1757468206722,1.45641907,111130.0,111110.0,0.0001]
[1757468206918,0.30643038,111120.0,111110.0,0.0001]
[1757468207112,0.03556,111110.0,111100.0,0.0001]
[1757468207323,1.01944224,111110.0,111090.0,0.03996106]
[1757468207726,1.01944224,111110.0,111100.0,0.02174]
[1757468209423,0.19156224,111110.0,111100.0,0.02274]
[1757468209623,1.01924224,111110.0,111100.0,0.02274]
[1757468210227,1.02124224,111110.0,111100.0,0.02374]
[1757468210830,0.88564705,111110.0,111100.0,0.03684]
[1757468211328,0.88564705,111110.0,111100.0,0.03584]
[1757468211724,0.05812705,111110.0,111100.0,0.03584]
[1757468211928,0.04420705,111110.0,111100.0,0.17127519]
[1757468212129,0.04420705,111110.0,111100.0,0.42127519]
[1757468213332,0.02256705,111110.0,111100.0,0.42127519]
[1757468213833,0.04420705,111110.0,111100.0,0.42127519]
[1757468214530,0.02256705,111110.0,111100.0,0.42127519]
[1757468214730,0.002,111110.0,111100.0,0.42127519]
[1757468215733,0.02364,111110.0,111100.0,0.42127519]
[1757468215931,0.002,111110.0,111100.0,0.42127519]
[1757468217630,0.002,111110.0,111100.0,0.51127889]
[1757468217930,0.002,111110.0,111100.0,0.57600754]
[1757468218329,0.002,111110.0,111100.0,0.57503752]
[1757468218728,0.0001348,111120.0,111110.0,0.1248356]
[1757468218929,0.0001348,111120.0,111110.0,0.32402942]
[1757468219129,0.0001348,111120.0,111110.0,0.57402942]
[1757468219331,0.0001348,111120.0,111110.0,0.50930077]
[1757468220327,0.0001348,111120.0,111110.0,0.28484]
[1757468220532,0.0001348,111120.0,111110.0,0.48396544]
[1757468220735,0.0021348,111120.0,111110.0,0.48496544]
[1757468221033,0.0237748,111120.0,111110.0,0.03584]
[1757468221327,0.17315997,111120.0,111110.0,0.03584]
[1757468221534,0.17315997,111120.0,111110.0,0.02274]
[1757468221923,0.17115997,111120.0,111110.0,0.02374]
[1757468222130,0.17215997,111120.0,111110.0,0.03684]
[1757468222329,0.0376948,111120.0,111110.0,0.03684]
[1757468222536,0.42215997,111120.0,111110.0,0.02374]
[1757468223638,0.2876948,111120.0,111110.0,0.03684]
[1757468224340,0.44264365,111120.0,111110.0,0.002]
[1757468224536,0.44264365,111120.0,111110.0,0.02374]
[1757468224747,0.30717848,111120.0,111110.0,0.03684]
[1757468229235,0.05717848,111120.0,111110.0,0.03684]
[1757468230741,0.05717848,111120.0,111110.0,0.02374]
[1757468232938,0.19164365,111120.0,111110.0,0.002]
[1757468233436,0.44164365,111120.0,111110.0,0.002]
[1757468235837,0.45049867,111120.0,111110.0,0.002]
[1757468239637,1.27609867,111120.0,111110.0,0.002]
[1757468240944,0.45049867,111120.0,111110.0,0.002]
[1757468241136,1.02597867,111120.0,111110.0,0.002]
[1757468241341,0.19164365,111120.0,111110.0,0.02445]
[1757468241537,0.66161848,111120.0,111110.0,0.03759]
[1757468244145,0.05717848,111120.0,111110.0,0.02445]
[1757468244349,0.05717848,111120.0,111110.0,0.03759]
[1757468244549,0.04325848,111120.0,111110.0,0.03759]
[1757468244746,0.05651848,111120.0,111110.0,0.02445]